bitfinex/quotes_BTCUSD_20250408
["timestamp","ask_amount","ask_price","bid_price","bid_amount"]
[1744118020933,0.01,80023.0,80022.0,0.001335]
[1744118021147,0.259928,80023.0,80022.0,0.001335]
[1744118021339,0.272424,80023.0,80022.0,0.001335]
[1744118025529,0.01,80023.0,80022.0,0.001335]
[1744118025723,0.01,80023.0,80022.0,0.263762]
[1744118025939,0.259928,80023.0,80022.0,0.001335]
[1744118026073,0.01,80023.0,80022.0,0.001335]
[1744118026272,0.259928,80023.0,80022.0,0.001335]
[1744118027047,0.272424,80023.0,80022.0,0.001335]
[1744118027338,0.01,80023.0,80022.0,0.251266]
[1744118027569,0.01,80023.0,80022.0,0.001335]
[1744118027766,0.01,80023.0,80022.0,0.263762]
[1744118028528,0.259928,80023.0,80022.0,0.001335]
[1744118028724,0.259928,80023.0,80022.0,0.01300376]
[1744118030062,0.272424,80023.0,80022.0,0.01300376]
[1744118030259,0.01,80023.0,80022.0,0.01300376]
[1744118030417,0.01,80023.0,80022.0,0.001335]
[1744118030593,0.01,80023.0,80022.0,0.433346]
[1744118030795,0.01,80023.0,80022.0,0.92664149]
[1744118031019,0.0465,80068.0,80055.0,0.012491]
[1744118031224,0.262313,80057.0,80056.0,0.18208]
[1744118031422,0.249843,80050.0,80049.0,0.4144]
[1744118031625,0.262345,80047.0,80046.0,0.18208]
[1744118033591,0.009,80047.0,80046.0,0.44220852]
[1744118033791,0.009,80047.0,80046.0,0.19235252]
[1744118033991,0.258853,80047.0,80046.0,0.19235252]
[1744118034368,0.271345,80047.0,80046.0,0.19235252]
[1744118034739,0.258853,80047.0,80046.0,0.19235252]
[1744118035257,0.016,80047.0,80046.0,0.19335252]
[1744118035495,0.007,80047.0,80046.0,0.19135252]
[1744118035654,0.005,80047.0,80046.0,0.19135252]
[1744118035854,0.008,80047.0,80046.0,0.44120852]
[1744118036268,0.252853,80047.0,80046.0,0.19135252]
[1744118036472,0.008,80047.0,80046.0,0.19135252]
[1744118036711,0.008,80047.0,80046.0,0.44120852]
[1744118036928,0.008,80047.0,80046.0,0.19135252]
[1744118037319,0.270345,80047.0,80046.0,0.19135252]
[1744118037714,0.008,80047.0,80046.0,0.19135252]
[1744118037914,0.008,80047.0,80046.0,0.44120852]
[1744118038123,0.008,80047.0,80046.0,0.19135252]
[1744118039189,0.00041705,80070.0,80063.0,0.262293]
[1744118039464,0.00041705,80070.0,80063.0,1.98389249]
[1744118039795,0.2624584,80064.0,80063.0,1.5808]
[1744118040325,0.2499684,80064.0,80063.0,1.5808]
[1744118040526,0.0001684,80064.0,80063.0,1.98389249]
[1744118041144,0.00041705,80070.0,80069.0,0.262273]
[1744118041524,0.012483,80106.0,80077.0,0.27678685]
[1744118041525,0.249675,80104.0,80077.0,0.27678685]
[1744118041701,0.00029333,80078.0,80077.0,0.27678685]
[1744118041924,0.00029333,80078.0,80077.0,0.40304549]
[1744118042124,0.00029333,80078.0,80077.0,0.41231483]
[1744118042463,0.25004933,80078.0,80077.0,0.13552798]
[1744118042664,0.00029333,80078.0,80077.0,0.01226934]
[1744118042863,0.01278033,80078.0,80077.0,0.18878934]
[1744118043085,0.01278033,80078.0,80077.0,0.19078934]
[1744118043450,0.00029333,80078.0,80077.0,0.20327634]
[1744118043849,0.00029333,80078.0,80077.0,0.18878934]
[1744118044117,0.01278033,80078.0,80077.0,0.18878934]
[1744118044726,0.01278033,80078.0,80077.0,0.18578934]
[1744118045021,0.00029333,80078.0,80077.0,0.18578934]
[1744118045191,0.00129333,80078.0,80077.0,0.18578934]
[1744118045601,0.00129333,80078.0,80077.0,0.43554834]
[1744118045804,0.00129333,80078.0,80077.0,0.58883483]
[1744118046830,0.00029333,80078.0,80077.0,0.58883483]
[1744118047031,0.00029333,80078.0,80077.0,1.00323483]
[1744118047266,0.00029333,80078.0,80077.0,1.00923483]
[1744118049136,0.00129333,80078.0,80077.0,1.01623483]
[1744118050664,0.00129333,80078.0,80077.0,0.73944798]
[1744118050866,0.26353633,80078.0,80077.0,0.61318934]
[1744118051036,0.00129333,80078.0,80077.0,0.61318934]
[1744118051378,0.26353633,80078.0,80077.0,0.61318934]
[1744118051740,0.26253633,80078.0,80077.0,0.60018934]
[1744118052123,0.26353633,80078.0,80077.0,0.60118934]
[1744118052330,0.00129333,80078.0,80077.0,0.98869398]
[1744118052769,0.00129333,80078.0,80077.0,1.00323483]
[1744118052981,0.00029333,80078.0,80077.0,1.00323483]
[1744118053355,0.00029333,80078.0,80077.0,1.00423483]
[1744118053761,0.26253633,80078.0,80077.0,0.60118934]
[1744118053977,0.25004933,80078.0,80077.0,0.60318934]
[1744118054556,0.26253633,80078.0,80077.0,0.60318934]
[1744118055831,0.60253633,80078.0,80077.0,0.18878934]
[1744118056193,0.60253633,80078.0,80077.0,0.003]
[1744118056397,0.00029333,80078.0,80077.0,0.18788092]
[1744118056620,0.25104933,80078.0,80077.0,0.17648]
[1744118057405,0.26353633,80078.0,80077.0,0.17648]
[1744118057804,0.00129333,80078.0,80077.0,0.5742703]
[1744118058175,0.00129333,80078.0,80077.0,0.3120243]
[1744118058492,0.00029333,80078.0,80077.0,0.3120243]
[1744118058821,0.00529333,80078.0,80077.0,0.3120243]
[1744118059027,0.25504933,80078.0,80077.0,0.3130243]
[1744118059358,0.25504933,80078.0,80077.0,0.60016566]
[1744118059359,0.26353633,80078.0,80077.0,0.60016566]
[1744118059714,0.26553633,80078.0,80077.0,0.60016566]
[1744118059914,0.26553633,80078.0,80077.0,0.42368566]
[1744118060121,0.60553633,80078.0,80077.0,0.42368566]
[1744118061395,0.60553633,80078.0,80077.0,0.4144]
[1744118062273,0.00329333,80078.0,80077.0,0.4144]
[1744118062474,0.00329333,80078.0,80077.0,0.676646]
[1744118062874,0.00329333,80078.0,80077.0,0.81744549]
[1744118064474,0.00329333,80078.0,80077.0,0.82909082]
[1744118064854,0.00229333,80078.0,80077.0,0.82909082]
[1744118065049,0.00229333,80078.0,80077.0,0.83209082]
[1744118065271,0.00029333,80078.0,80077.0,0.83209082]
[1744118065479,0.00029333,80078.0,80077.0,0.83109082]
[1744118065817,0.00129333,80078.0,80077.0,0.83809082]
[1744118065973,0.00129333,80078.0,80077.0,0.83609082]
[1744118066168,0.00129333,80078.0,80077.0,0.82444549]
[1744118066394,0.00129333,80078.0,80077.0,0.83044549]
[1744118066557,0.012485,80095.0,80089.0,0.249722]
[1744118066756,0.249706,80094.0,80090.0,0.71139701]
[1744118067034,0.249705,80095.0,80090.0,0.96111301]
[1744118067170,0.2497,80096.0,80092.0,0.249711]
[1744118067673,0.249703,80095.0,80092.0,0.249711]
[1744118068049,0.249709,80094.0,80090.0,0.97359801]
[1744118068298,0.249704,80095.0,80092.0,0.249712]
[1744118068512,0.249703,80095.0,80093.0,0.249708]
[1744118068849,0.249715,80091.0,80090.0,0.58513837]
[1744118069246,0.249712,80092.0,80090.0,0.58513837]
[1744118069441,0.001,80095.0,80090.0,0.84733837]
[1744118069705,0.001,80095.0,80094.0,0.262191]
[1744118070117,0.249695,80098.0,80095.0,0.249703]
[1744118070318,0.249691,80099.0,80094.0,0.012485]
[1744118070619,0.249691,80099.0,80096.0,0.2497]
[1744118070827,0.2623322,80103.0,80102.0,0.249681]
[1744118070828,0.0001682,80103.0,80102.0,0.249681]
[1744118071040,0.00029337,80103.0,80102.0,0.262165]
[1744118071238,0.00029337,80103.0,80099.0,0.262172]
[1744118071432,0.262178,80098.0,80097.0,0.41293837]
[1744118071634,0.602178,80098.0,80097.0,0.41293837]
[1744118072061,0.2622,80091.0,80090.0,0.1722]
[1744118072821,0.2622,80091.0,80090.0,0.18176015]
[1744118073019,0.2622,80091.0,80090.0,0.00956015]
[1744118073340,0.262214,80087.0,80086.0,0.1722]
[1744118074565,0.263214,80087.0,80086.0,0.1722]
[1744118075352,0.250728,80087.0,80086.0,0.1722]
[1744118075574,0.001,80087.0,80086.0,0.56986353]
[1744118075773,0.001,80087.0,80086.0,0.99734275]
[1744118076003,0.263214,80087.0,80086.0,0.59432626]
[1744118076403,0.603214,80087.0,80086.0,0.42212626]
[1744118076575,0.605214,80087.0,80086.0,0.42212626]
[1744118076960,0.604214,80087.0,80086.0,0.42212626]
[1744118077349,0.604214,80087.0,80086.0,0.42512626]
[1744118077684,0.604214,80087.0,80086.0,0.42212626]
[1744118077879,0.605214,80087.0,80086.0,0.42212626]
[1744118078713,0.73147264,80087.0,80086.0,0.41293837]
[1744118079569,0.602263,80072.0,80071.0,0.1722]
[1744118079704,0.602263,80072.0,80055.0,0.2061]
[1744118079705,0.262316,80056.0,80055.0,0.4144]
[1744118080110,0.262316,80056.0,80055.0,0.5866]
[1744118080279,0.249825,80056.0,80055.0,0.5866]
[1744118080502,0.249825,80056.0,80055.0,0.1722]
[1744118080842,0.262316,80056.0,80055.0,0.1722]
[1744118081042,0.602316,80056.0,80055.0,0.00041705]
[1744118081242,0.262302,80062.0,80055.0,0.00041705]
[1744118081243,0.249788,80068.0,80056.0,0.012491]
[1744118081467,0.34,80065.0,80058.0,0.249818]
[1744118081671,0.589792,80067.0,80055.0,0.00041705]
[1744118081672,0.001,80056.0,80055.0,0.00041705]
[1744118081869,0.001,80056.0,80055.0,0.26273505]
[1744118082232,0.250825,80056.0,80055.0,0.00979235]
[1744118082473,0.34,80064.0,80055.0,0.00979235]
[1744118082652,0.249812,80060.0,80055.0,0.00979235]
[1744118082863,0.012488,80073.0,80062.0,0.249804]
[1744118083076,0.352489,80067.0,80058.0,0.01249]
[1744118083243,0.34,80067.0,80058.0,0.01249]
[1744118083449,0.012489,80066.0,80055.0,0.02228335]
[1744118083644,0.249825,80056.0,80055.0,0.00979235]
[1744118083845,0.01249,80060.0,80055.0,0.01179235]
[1744118084161,0.003,80056.0,80055.0,0.01179235]
[1744118084364,0.249819,80058.0,80055.0,0.00979235]
[1744118084680,0.249825,80056.0,80055.0,0.01479235]
[1744118084886,0.249819,80058.0,80055.0,0.01479235]
[1744118085231,0.249824,80057.0,80055.0,0.01179235]
[1744118085449,0.249824,80057.0,80055.0,0.01379235]
[1744118085686,0.262316,80056.0,80055.0,0.01379235]
[1744118085861,0.262316,80056.0,80055.0,0.004]
[1744118085862,0.602316,80056.0,80055.0,0.004]
[1744118086185,0.74008983,80056.0,80055.0,0.004]
[1744118086420,0.602375,80038.0,80025.0,0.17224]
[1744118086622,0.602375,80038.0,80037.0,0.00046143]
[1744118088034,0.602375,80038.0,80037.0,0.00446143]
[1744118088402,0.72863364,80038.0,80037.0,4.3e-07]
[1744118088611,0.602398,80031.0,80030.0,0.0003364]
[1744118089933,0.589903,80031.0,80030.0,0.0003364]
[1744118090307,0.602398,80031.0,80030.0,0.0003364]
[1744118090504,0.342,80031.0,80030.0,0.0003364]
[1744118090714,0.003,80031.0,80030.0,0.0003364]
[1744118091800,0.003,80031.0,80030.0,0.2627374]
[1744118092008,0.003,80031.0,80030.0,0.40353689]
[1744118092612,0.001,80031.0,80030.0,0.40353689]
[1744118092814,0.001,80031.0,80030.0,0.55353689]
[1744118093015,0.002,80031.0,80030.0,0.55353689]
[1744118093221,0.001,80031.0,80030.0,0.55353689]
[1744118093424,0.249835,80053.0,80048.0,0.249848]
[1744118093658,0.24994962,80053.0,80049.0,0.17228]
[1744118094240,0.249838,80052.0,80049.0,0.17228]
[1744118094459,0.249843,80050.0,80049.0,0.17228]
[1744118094660,0.24984,80052.0,80049.0,0.17228]
[1744118094858,0.249841,80051.0,80049.0,0.17228]
[1744118095082,0.24984,80052.0,80049.0,0.17228]
[1744118095284,0.00011462,80053.0,80052.0,0.27686885]
[1744118095484,0.00011462,80053.0,80052.0,0.40312749]
[1744118095859,0.00411462,80053.0,80052.0,0.40312749]
[1744118096666,0.00411462,80053.0,80052.0,0.14479949]
[1744118096863,0.00011462,80053.0,80052.0,0.40712749]
[1744118097068,0.00011462,80053.0,80052.0,0.40312749]
[1744118097455,0.00011462,80053.0,80049.0,0.43150029]
[1744118097566,0.00011462,80053.0,80052.0,0.003]
[1744118098008,0.24994862,80053.0,80052.0,0.006]
[1744118098626,0.00011462,80053.0,80052.0,0.255837]
[1744118098836,0.00011462,80053.0,80052.0,0.40912749]
[1744118103530,0.00011462,80053.0,80052.0,0.39663649]
[1744118103706,0.00011462,80053.0,80052.0,0.40912749]
[1744118104632,0.00011462,80053.0,80052.0,0.55912749]
[1744118105699,0.00011462,80053.0,80052.0,0.40912749]
[1744118107329,0.00011462,80053.0,80052.0,0.14679949]
[1744118108665,0.01260562,80053.0,80052.0,0.006]
[1744118108838,0.60243962,80053.0,80052.0,0.1738]
[1744118109679,0.72869826,80053.0,80052.0,1e-06]
[1744118109911,0.602398,80031.0,80030.0,0.0003364]
[1744118110639,0.72865664,80031.0,80030.0,0.0003364]
[1744118110911,0.72865664,80031.0,80030.0,4e-07]
[1744118111109,0.262424,80023.0,80022.0,0.11002894]
[1744118111315,0.60245,80015.0,80014.0,0.0003364]
[1744118111444,0.72870864,80015.0,80014.0,0.0003364]
[1744118111661,0.602469,80009.0,80008.0,0.0003366]
[1744118111865,0.82372764,80009.0,80008.0,6e-07]
[1744118112066,0.88182582,80009.0,80008.0,6e-07]
[1744118112265,0.72073499,80009.0,80008.0,6e-07]
[1744118112527,0.84699363,80009.0,80008.0,0.00012592]
[1744118112758,0.88182582,80009.0,80008.0,0.00012592]
[1744118112973,0.602483,80005.0,80001.0,0.000337]
[1744118113204,0.602483,80005.0,80002.0,1.59e-06]
[1744118113205,0.602489,80003.0,80002.0,1.59e-06]
[1744118113379,0.602489,80003.0,79997.0,9.9e-07]
[1744118113380,0.602506,79998.0,79997.0,9.9e-07]
[1744118113552,0.602506,79998.0,79991.0,0.004]
[1744118113553,0.602526,79992.0,79991.0,0.004]
[1744118113961,0.62577026,79992.0,79991.0,0.004]
[1744118114141,0.262611,79966.0,79965.0,0.11123889]
[1744118114343,0.012504,79971.0,79965.0,0.11165824]
[1744118114544,0.34,79968.0,79965.0,0.11165824]
[1744118114881,0.02324426,79971.0,79969.0,0.012504]
[1744118115126,0.34,79968.0,79965.0,0.11165824]
[1744118115323,0.012505,79968.0,79965.0,0.11165824]
[1744118115448,0.262611,79966.0,79965.0,0.11165824]
[1744118115645,0.262611,79966.0,79965.0,0.11665824]
[1744118115847,0.602611,79966.0,79965.0,0.11665824]
[1744118116044,0.602611,79966.0,79965.0,0.00541935]
[1744118116494,0.602611,79966.0,79965.0,0.00341935]
[1744118116691,0.602611,79966.0,79965.0,0.00541935]
[1744118116844,0.34,79966.0,79965.0,0.00541935]
[1744118117050,0.352505,79966.0,79965.0,0.00841935]
[1744118117447,0.352505,79966.0,79965.0,0.00541935]
[1744118117651,0.355505,79966.0,79965.0,0.00541935]
[1744118118008,0.355505,79966.0,79965.0,0.00041935]
[1744118118352,0.358505,79966.0,79965.0,0.00041935]
[1744118119743,0.346,79966.0,79965.0,0.00041935]
[1744118120686,0.346,79966.0,79965.0,0.01292435]
[1744118120906,0.346,79966.0,79965.0,0.012505]
[1744118121080,0.346,79966.0,79963.0,0.250113]
[1744118121281,0.34641687,79966.0,79963.0,0.250113]
[1744118121593,0.00641687,79966.0,79965.0,0.012505]
[1744118121796,0.00641687,79966.0,79965.0,0.30672364]
[1744118122148,0.00041687,79966.0,79965.0,0.30672364]
[1744118122351,0.00241687,79966.0,79965.0,0.32126449]
[1744118122770,0.00041687,79966.0,79965.0,0.32126449]
[1744118122969,0.00241687,79966.0,79965.0,0.32126449]
[1744118123356,0.00041687,79966.0,79965.0,0.32126449]
[1744118123692,0.00041687,79966.0,79965.0,0.32426449]
[1744118123926,0.00041687,79966.0,79965.0,0.15630449]
[1744118124106,8.7e-07,79966.0,79965.0,0.32186449]
[1744118124357,8.7e-07,79966.0,79965.0,0.32486449]
[1744118124847,8.7e-07,79966.0,79965.0,0.32186449]
[1744118125044,8.7e-07,79966.0,79965.0,0.32686449]
[1744118125357,8.7e-07,79966.0,79965.0,0.32386449]
[1744118125555,8.7e-07,79966.0,79965.0,0.32286449]
[1744118125784,8.7e-07,79966.0,79965.0,0.31886449]
[1744118125974,8.7e-07,79966.0,79965.0,0.32386449]
[1744118126178,8.7e-07,79966.0,79965.0,0.32786449]
[1744118126380,8.7e-07,79966.0,79965.0,0.32386449]
[1744118126761,8.7e-07,79966.0,79965.0,0.32786449]
[1744118127354,8.7e-07,79966.0,79965.0,0.32286449]
[1744118127902,8.7e-07,79966.0,79965.0,0.32786449]
[1744118129258,8.7e-07,79966.0,79965.0,0.47786449]
[1744118130080,8.7e-07,79966.0,79965.0,0.72797349]
[1744118130509,8.7e-07,79966.0,79965.0,1.06797349]
[1744118130729,0.012497,80014.0,80008.0,0.249974]
[1744118130730,0.012497,80013.0,80008.0,0.249974]
[1744118130931,0.012497,80013.0,80001.0,0.012499]
[1744118130932,0.34,80005.0,80003.0,0.16556]
[1744118131136,0.012501,79990.0,79973.0,0.15]
[1744118131308,0.262538,79988.0,79986.0,0.16556]
[1744118131616,0.012501,79990.0,79987.0,1.15608]
[1744118131617,0.262534,79990.0,79987.0,1.15608]
[1744118131813,0.262536,79989.0,79987.0,1.15608]
[1744118132017,0.250035,79989.0,79987.0,1.15608]
[1744118132225,0.262525,79993.0,79987.0,1.15608]
[1744118132226,0.0125,80000.0,79995.0,0.262514]
[1744118132440,0.34,79998.0,79996.0,0.250011]
[1744118132792,0.250015,79995.0,79990.0,0.262531]
[1744118133070,0.250019,79994.0,79991.0,0.250026]
[1744118133473,0.352499,80004.0,79993.0,0.012501]
[1744118133697,0.250026,79992.0,79988.0,0.250035]
[1744118133972,0.012501,79993.0,79989.0,0.250034]
[1744118134173,0.250022,79993.0,79989.0,0.250034]
[1744118134382,0.250006,79998.0,79993.0,0.012501]
[1744118134577,0.250027,79992.0,79987.0,1.16556664]
[1744118134787,0.250027,79992.0,79988.0,0.250034]
[1744118134914,0.003,79992.0,79989.0,0.250034]
[1744118135118,0.003,79992.0,79988.0,0.012501]
[1744118135322,0.250026,79992.0,79989.0,0.250034]
[1744118135658,0.004,79993.0,79989.0,0.012501]
[1744118135880,0.004,79993.0,79987.0,1.16556664]
[1744118135881,0.250031,79990.0,79987.0,1.16556664]
[1744118136106,0.262538,79988.0,79987.0,1.16556664]
[1744118136283,0.28573542,79988.0,79987.0,1.16556664]
[1744118136493,0.02319742,79988.0,79987.0,1.41560664]
[1744118136707,0.02319742,79991.0,79989.0,0.250034]
[1744118136854,0.02319742,79991.0,79987.0,1.42810864]
[1744118136855,0.250034,79989.0,79987.0,1.16556664]
[1744118137054,0.02319742,79991.0,79989.0,0.250034]
[1744118137247,0.02319742,79991.0,79988.0,0.012501]
[1744118137631,0.250037,79988.0,79987.0,0.17504664]
[1744118137755,0.012504,79974.0,79968.0,0.012505]
[1744118137953,0.25009,79972.0,79969.0,0.16556]
[1744118138224,0.28578542,79973.0,79970.0,0.250093]
[1744118138433,0.250091,79971.0,79969.0,0.16556]
[1744118138571,0.02319742,79972.0,79971.0,0.262594]
[1744118138935,0.02319742,79972.0,79971.0,0.55339349]
[1744118139237,0.012501,79993.0,79984.0,0.250048]
[1744118139238,0.012501,79990.0,79984.0,0.250048]
[1744118139401,0.25004,79987.0,79985.0,0.16556]
[1744118139615,0.25003,79991.0,79986.0,0.012502]
[1744118139806,0.250034,79990.0,79986.0,0.262545]
[1744118140010,0.250037,79989.0,79986.0,0.250043]
[1744118140213,0.34,79993.0,79987.0,0.012502]
[1744118140552,0.250043,79986.0,79985.0,0.16556]
[1744118140746,0.250042,79987.0,79985.0,0.16556]
[1744118141281,0.250043,79986.0,79985.0,0.16556]
[1744118141624,0.25004,79988.0,79985.0,0.16556]
[1744118141823,0.250043,79986.0,79985.0,0.16556]
[1744118142043,0.25004,79988.0,79985.0,0.16556]
[1744118142250,0.252043,79986.0,79985.0,0.16556]
[1744118142447,0.002,79986.0,79985.0,0.428108]
[1744118143709,0.002,79988.0,79987.0,0.262542]
[1744118144248,0.002,79988.0,79987.0,0.38880064]
[1744118144453,0.002,79988.0,79987.0,0.12625864]
[1744118144700,0.002,79988.0,79986.0,0.4144]
[1744118145109,0.262542,79987.0,79986.0,0.4144]
[1744118145485,0.256039,79988.0,79986.0,0.4144]
[1744118145682,0.262542,79987.0,79986.0,0.4144]
[1744118147610,0.602542,79987.0,79986.0,0.4144]
[1744118148062,0.604542,79987.0,79986.0,0.4144]
[1744118148268,0.606542,79987.0,79986.0,0.4144]
[1744118149458,0.262545,79986.0,79985.0,0.16556]
[1744118150446,0.262605,79968.0,79967.0,0.00012544]
[1744118150662,0.262605,79968.0,79967.0,0.16568544]
[1744118151065,0.602605,79968.0,79967.0,0.16568544]
[1744118151666,0.602605,79968.0,79967.0,0.16868544]
[1744118151869,0.602605,79968.0,79967.0,0.17168544]
[1744118153352,0.602605,79968.0,79967.0,0.00612544]
[1744118154598,0.72886364,79968.0,79967.0,0.00612544]
[1744118156747,0.72886364,79968.0,79967.0,4.4e-07]
[1744118156981,0.72886364,79968.0,79937.0,0.4144]
[1744118156982,0.352509,79941.0,79934.0,0.0003368]
[1744118157182,0.602713,79935.0,79934.0,0.0003368]
[1744118157788,0.66487417,79960.0,79950.0,0.262663]
[1744118157942,0.012507,79949.0,79939.0,0.012509]
[1744118158162,0.250187,79941.0,79935.0,0.250202]
[1744118158441,0.34,79942.0,79937.0,0.250196]
[1744118158663,0.602691,79942.0,79936.0,0.412119]
[1744118158862,0.34,79942.0,79938.0,0.012509]
[1744118159071,0.250186,79941.0,79937.0,0.250194]
[1744118159269,0.250186,79941.0,79936.0,0.17443]
[1744118159474,0.27348791,79940.0,79936.0,0.16192]
[1744118159895,0.27349091,79939.0,79936.0,0.16192]
[1744118160179,0.02329891,79939.0,79936.0,0.16192]
[1744118160457,0.27349291,79938.0,79936.0,0.16192]
[1744118160675,0.02329891,79938.0,79937.0,0.001]
[1744118160875,9.1e-07,79938.0,79937.0,0.1568102]
[1744118161084,0.0483,79982.0,79950.0,0.262663]
[1744118161288,0.250047,79985.0,79965.0,0.262614]
[1744118161489,0.01184045,79966.0,79965.0,1.253374]
[1744118161702,0.01184045,79966.0,79965.0,1.37963264]
[1744118161909,7e-05,79966.0,79965.0,1.37963264]
[1744118162264,7e-05,79966.0,79965.0,1.81815088]
[1744118162654,0.012499,80003.0,79995.0,0.0125]
[1744118162859,0.0462,80016.0,79995.0,0.0125]
[1744118162860,0.10981687,79998.0,79997.0,0.0125]
[1744118163059,0.12144708,79998.0,79997.0,0.17446]
[1744118163262,0.12144708,79998.0,79997.0,0.16196]
[1744118163750,0.12144708,79998.0,79997.0,0.17446]
[1744118164339,0.12581687,79998.0,79997.0,0.17646]
[1744118164465,0.46581687,79998.0,79997.0,0.17646]
[1744118164667,0.44981687,79998.0,79997.0,0.16196]
[1744118164867,0.45581687,79998.0,79997.0,0.16296]
[1744118165269,0.34612534,79998.0,79997.0,0.16296]
[1744118165651,0.34612534,79998.0,79997.0,0.17546]
[1744118166088,0.34612534,79998.0,79997.0,0.16296]
[1744118166279,0.35212534,79998.0,79997.0,0.17646]
[1744118166675,0.35212534,79998.0,79997.0,0.16396]
[1744118166918,0.01212534,79998.0,79997.0,0.18583657]
[1744118167479,0.02462534,79998.0,79997.0,0.17333657]
[1744118168056,0.01212534,79998.0,79997.0,0.17333657]
[1744118171099,0.02462534,79998.0,79997.0,0.17329657]
[1744118171311,0.36462534,79998.0,79997.0,0.002]
[1744118172906,0.38787653,79998.0,79997.0,0.002]
[1744118173918,0.51413517,79998.0,79997.0,0.002]
[1744118175116,0.38787653,79998.0,79997.0,0.002]
[1744118175968,0.63788253,79998.0,79997.0,0.002]
[1744118176518,0.76414117,79998.0,79997.0,0.002]
[1744118178775,0.602542,79987.0,79986.0,0.16188]
[1744118179096,0.602542,79987.0,79971.0,0.99044]
[1744118179097,0.262591,79972.0,79971.0,0.99044]
[1744118179303,0.012506,79958.0,79952.0,0.012507]
[1744118179442,0.012506,79958.0,79951.0,0.426907]
[1744118179443,0.250134,79957.0,79953.0,0.412026]
[1744118179786,0.250134,79957.0,79953.0,0.4214507]
[1744118180206,0.012506,79961.0,79953.0,0.4214507]
[1744118180207,0.262629,79961.0,79956.0,0.012506]
[1744118180366,0.012506,79960.0,79953.0,0.17172157]
[1744118180748,0.250141,79955.0,79953.0,0.17172157]
[1744118181003,0.26265,79954.0,79953.0,0.16229687]
[1744118181181,0.250141,79955.0,79953.0,0.16229687]
[1744118181379,0.34,79955.0,79954.0,0.26265]
[1744118181785,0.34,79955.0,79953.0,0.41244287]
[1744118181786,0.34,79979.0,79961.0,0.012506]
[1744118182031,0.250102,79968.0,79963.0,0.250115]
[1744118182434,0.34,79969.0,79965.0,0.262614]
[1744118182590,0.34,79969.0,79967.0,0.250102]
[1744118182808,0.590096,79969.0,79968.0,0.16192]
[1744118183195,0.6026,79969.0,79968.0,0.16192]
[1744118183805,0.61400509,79969.0,79968.0,0.16192]
[1744118184019,0.62000509,79969.0,79968.0,0.16192]
[1744118184668,0.62400509,79969.0,79968.0,0.16192]
[1744118184869,0.63726132,79969.0,79968.0,0.16192]
[1744118185102,0.64326132,79969.0,79968.0,0.16292]
[1744118185297,0.64826132,79969.0,79968.0,0.16292]
[1744118185449,0.77451996,79969.0,79968.0,0.001]
[1744118188731,0.602631,79960.0,79959.0,0.15952]
[1744118188932,0.352506,79960.0,79959.0,0.15952]
[1744118189140,0.602631,79960.0,79959.0,0.15952]
[1744118189352,0.62588723,79960.0,79959.0,0.15952]
[1744118189552,0.26265,79954.0,79953.0,0.00041687]
[1744118190454,0.28593549,79954.0,79953.0,0.00041687]
[1744118190654,0.75219413,79954.0,79953.0,0.00041687]
[1744118191086,0.75419413,79954.0,79953.0,0.00041687]
[1744118191464,0.62793549,79954.0,79953.0,0.00041687]
[1744118192051,0.63193549,79954.0,79953.0,0.00041687]
[1744118192264,0.02928549,79954.0,79953.0,0.26306987]
[1744118192467,0.02728549,79954.0,79953.0,0.26306987]
[1744118192670,0.004,79954.0,79953.0,0.25056287]
[1744118192918,0.009,79954.0,79953.0,0.00041687]
[1744118193118,0.009,79954.0,79953.0,0.25056287]
[1744118193524,0.009,79954.0,79953.0,0.26306987]
[1744118193781,0.009,79954.0,79953.0,0.38932851]
[1744118197216,0.009,79954.0,79953.0,0.80372851]
[1744118197418,0.009,79954.0,79953.0,0.81826936]
[1744118197619,0.01140509,79969.0,79968.0,0.262605]
[1744118197828,0.012502,79981.0,79973.0,0.012504]
[1744118198029,0.262577,79977.0,79974.0,0.250079]
[1744118198230,0.250075,79976.0,79973.0,0.250081]
[1744118198503,0.34,79975.0,79974.0,0.250081]
[1744118198792,0.01190248,79977.0,79976.0,0.262578]
[1744118199128,0.0001684,79989.0,79980.0,0.012503]
[1744118199327,0.0001684,79989.0,79988.0,0.250037]
[1744118199750,0.0001684,79989.0,79988.0,0.409597]
[1744118199924,0.0001684,79989.0,79988.0,0.422098]
[1744118200362,0.00029372,79989.0,79988.0,0.422098]
[1744118200498,0.00029372,79989.0,79988.0,0.15956]
[1744118200499,0.60282872,79989.0,79988.0,0.15956]
[1744118200903,0.00029372,79989.0,79988.0,0.43165097]
[1744118201350,0.00429372,79989.0,79988.0,0.43165097]
[1744118202079,0.00329372,79989.0,79988.0,0.43165097]
[1744118202432,0.00029372,79989.0,79988.0,0.43165097]
[1744118202845,0.00029372,79989.0,79988.0,0.16911297]
[1744118203241,0.00029372,79989.0,79988.0,0.41914997]
[1744118203465,7.2e-07,79989.0,79988.0,0.98685046]
[1744118203647,0.0001684,80022.0,80018.0,0.26244]
[1744118203847,0.0001684,80022.0,80018.0,1.41264]
[1744118204081,0.0001684,80022.0,80018.0,1.53889864]
[1744118204082,0.00429367,80019.0,80018.0,1.53889864]
[1744118204279,7e-08,80022.0,80018.0,1.96783949]
[1744118204448,8.7e-07,80028.0,80027.0,0.249915]
[1744118204633,8.7e-07,80028.0,80027.0,0.4126064]
[1744118204832,8.7e-07,80028.0,80027.0,0.38557055]
[1744118205129,8.7e-07,80028.0,80027.0,0.39806555]
[1744118205553,0.24991287,80028.0,80027.0,0.00939691]
[1744118205752,8.7e-07,80028.0,80027.0,0.14815055]
[1744118205882,8.7e-07,80028.0,80027.0,0.14125252]
[1744118206142,8.7e-07,80028.0,80027.0,0.13875364]
[1744118206890,8.7e-07,80028.0,80027.0,0.12625864]
[1744118207043,8.7e-07,80028.0,80027.0,0.15058666]
[1744118207253,8.7e-07,80028.0,80027.0,0.72019337]
[1744118207478,8.7e-07,80028.0,80027.0,0.57699759]
[1744118207653,8.7e-07,80028.0,80027.0,0.79987674]
[1744118207853,8.7e-07,80028.0,80027.0,0.4267031]
[1744118208078,0.01249587,80028.0,80027.0,0.0153031]
[1744118208235,0.01249587,80028.0,80027.0,0.1747831]